bitfinex/quotes_BTCUSD_20240730
["timestamp","ask_amount","ask_price","bid_price","bid_amount"]
[1722303852796,0.78785684,66521.0,66520.0,0.001913]
[1722303853024,0.78685684,66521.0,66520.0,0.000913]
[1722303853237,0.72440833,66521.0,66520.0,0.000913]
[1722303853456,0.78686571,66521.0,66520.0,0.000913]
[1722303853743,0.89878838,66521.0,66520.0,0.000913]
[1722303853957,0.77686571,66521.0,66520.0,0.000913]
[1722303854177,0.78686571,66521.0,66520.0,0.000913]
[1722303854452,0.77786571,66521.0,66520.0,0.000913]
[1722303854663,0.77686571,66521.0,66520.0,0.000913]
[1722303854882,0.78686571,66521.0,66520.0,0.001913]
[1722303855093,0.7994441,66521.0,66520.0,0.001913]
[1722303855525,1.49025036,66521.0,66520.0,0.001913]
[1722303855749,1.6412811,66521.0,66520.0,0.001913]
[1722303855971,2.2333608,66521.0,66520.0,0.001913]
[1722303856199,1.63008429,66521.0,66520.0,0.001913]
[1722303856420,1.75650197,66521.0,66520.0,0.001913]
[1722303856650,1.65657453,66521.0,66520.0,0.001913]
[1722303857548,1.50505884,66521.0,66520.0,0.000913]
[1722303857764,1.76658384,66521.0,66520.0,0.001913]
[1722303857980,1.76658384,66521.0,66520.0,0.000913]
[1722303857981,1.92721688,66521.0,66520.0,0.000913]
[1722303858203,2.68552705,66521.0,66520.0,0.000913]
[1722303858450,2.52871957,66521.0,66520.0,0.001913]
[1722303858675,2.67277566,66521.0,66520.0,0.001913]
[1722303858968,1.93120208,66521.0,66520.0,0.001913]
[1722303859175,1.74845489,66521.0,66520.0,0.001913]
[1722303859394,1.66410742,66521.0,66520.0,0.001913]
[1722303859608,1.67410742,66521.0,66520.0,0.001913]
[1722303859819,1.66410742,66521.0,66520.0,0.001913]
[1722303861344,1.66410742,66521.0,66504.0,0.120293]
[1722303861345,0.03135443,66505.0,66504.0,0.120293]
[1722303861569,0.10670159,66505.0,66504.0,0.120293]
[1722303861783,0.19275626,66505.0,66504.0,0.120293]
[1722303862239,0.03135443,66504.0,66503.0,0.060247]
[1722303862457,0.022,66503.0,66502.0,0.120295]
[1722303862685,0.022,66503.0,66502.0,0.180543]
[1722303862907,0.08447058,66503.0,66502.0,0.060248]
[1722303863127,0.45471001,66503.0,66502.0,0.060248]
[1722303863365,0.25000468,66503.0,66502.0,0.060248]
[1722303863574,0.26277697,66503.0,66502.0,0.060248]
[1722303863790,0.03135443,66501.0,66500.0,2.035149]
[1722303864029,0.25000468,66501.0,66500.0,2.035149]
[1722303864250,0.26274354,66501.0,66500.0,2.035149]
[1722303864748,0.26275526,66501.0,66500.0,2.035149]
[1722303865095,0.10656387,66501.0,66500.0,2.035149]
[1722303865303,0.07567947,66501.0,66500.0,2.036149]
[1722303865513,0.23187314,66501.0,66500.0,2.036149]
[1722303865707,0.29435063,66501.0,66500.0,2.036149]
[1722303865932,0.41464863,66501.0,66500.0,2.036149]
[1722303866134,0.29435063,66501.0,66500.0,2.036149]
[1722303866536,0.11457078,66501.0,66500.0,2.036149]
[1722303866899,0.27076687,66501.0,66500.0,2.036149]
[1722303867102,0.11457078,66501.0,66500.0,2.036149]
[1722303868061,0.10183192,66501.0,66500.0,2.036149]
[1722303868442,0.10455292,66501.0,66500.0,2.036149]
[1722303868642,0.27074527,66501.0,66500.0,2.036149]
[1722303868846,0.10455244,66501.0,66500.0,2.156449]
[1722303869088,0.05207543,66501.0,66500.0,2.156449]
[1722303869289,0.25802413,66501.0,66500.0,2.036149]
[1722303869739,0.29433104,66501.0,66500.0,2.036149]
[1722303870071,0.28433104,66501.0,66500.0,2.036149]
[1722303870211,0.13813833,66501.0,66500.0,2.036149]
[1722303870412,0.10183142,66501.0,66500.0,2.036149]
[1722303870802,0.11454346,66501.0,66500.0,2.156449]
[1722303871015,0.11454178,66501.0,66500.0,2.036149]
[1722303871217,0.10182974,66501.0,66500.0,2.036149]
[1722303871483,0.1141345,66501.0,66500.0,2.036149]
[1722303871632,0.03894715,66501.0,66500.0,2.036149]
[1722303871830,0.03894715,66501.0,66500.0,2.037149]
[1722303871831,0.10742286,66501.0,66500.0,2.037149]
[1722303873298,0.10742286,66501.0,66500.0,2.39805]
[1722303873749,0.13100757,66501.0,66500.0,2.39805]
[1722303873997,0.10742286,66501.0,66500.0,2.39805]
[1722303874215,0.10742286,66501.0,66500.0,2.157449]
[1722303874626,0.10742286,66501.0,66500.0,2.39805]
[1722303874989,0.10741965,66501.0,66500.0,2.39805]
[1722303875264,0.09741965,66501.0,66500.0,2.037149]
[1722303875463,0.10741965,66501.0,66500.0,2.037149]
[1722303875741,0.26360397,66501.0,66500.0,2.037149]
[1722303875956,0.26628265,66501.0,66500.0,2.157449]
[1722303876173,0.26428265,66501.0,66500.0,2.39805]
[1722303876399,0.27628265,66501.0,66500.0,2.39805]
[1722303876654,0.27628265,66501.0,66500.0,2.157449]
[1722303876865,0.26360397,66501.0,66500.0,2.157449]
[1722303877073,0.26360397,66501.0,66500.0,2.638651]
[1722303877074,0.2643024,66501.0,66500.0,2.638651]
[1722303877299,0.28518891,66501.0,66500.0,2.638651]
[1722303877717,0.27518891,66501.0,66500.0,2.638651]
[1722303877965,0.27718891,66501.0,66500.0,2.638651]
[1722303878105,0.27718891,66501.0,66500.0,2.714151]
[1722303878106,0.06653209,66501.0,66500.0,2.714151]
[1722303878299,0.12900308,66501.0,66500.0,2.714151]
[1722303878507,0.13100308,66501.0,66500.0,2.714151]
[1722303879084,0.13100308,66501.0,66500.0,3.40708604]
[1722303879085,0.10005593,66501.0,66500.0,3.40708604]
[1722303879375,0.07647099,66501.0,66500.0,3.40708604]
[1722303880025,0.07047099,66501.0,66500.0,3.40608604]
[1722303880295,0.07047099,66501.0,66500.0,3.74668704]
[1722303880540,1.32045908,66520.0,66516.0,0.601357]
[1722303880541,0.4633883,66519.0,66516.0,0.601357]
[1722303880746,0.53775132,66517.0,66516.0,1.07493304]
[1722303880942,0.54837715,66517.0,66516.0,1.07493304]
[1722303881358,0.48592583,66517.0,66516.0,1.07493304]
[1722303881583,0.54837456,66517.0,66516.0,1.07493304]
[1722303882024,0.55837456,66517.0,66516.0,1.07493304]
[1722303882354,0.56037456,66517.0,66516.0,1.07493304]
[1722303882564,0.58395207,66517.0,66516.0,1.07493304]
[1722303882992,0.56037456,66517.0,66516.0,1.07493304]
[1722303883185,0.54837456,66517.0,66516.0,1.07493304]
[1722303883505,0.49592583,66517.0,66516.0,1.07693304]
[1722303883715,0.48592583,66517.0,66516.0,1.07693304]
[1722303883863,0.51687298,66517.0,66516.0,0.51344704]
[1722303884071,0.57932503,66517.0,66516.0,0.51144704]
[1722303884331,0.57932598,66517.0,66516.0,0.51344704]
[1722303885004,0.10402598,66517.0,66516.0,0.75399004]
[1722303885133,0.10502598,66517.0,66516.0,0.75399004]
[1722303885760,0.09302598,66517.0,66516.0,0.99253304]
[1722303886172,0.11660406,66517.0,66516.0,0.99253304]
[1722303886374,0.12860406,66517.0,66516.0,0.99253304]
[1722303886723,0.10765691,66517.0,66516.0,0.99253304]
[1722303886923,0.09765691,66517.0,66516.0,0.99253304]
[1722303887262,0.09765691,66517.0,66516.0,0.99553304]
[1722303887263,0.07307883,66517.0,66516.0,0.99553304]
[1722303887462,0.01062583,66517.0,66516.0,0.99853304]
[1722303887663,0.07307912,66517.0,66516.0,0.99253304]
[1722303887872,0.06245329,66517.0,66516.0,0.99253304]
[1722303888069,0.09428399,66517.0,66516.0,0.99253304]
[1722303888279,0.08228399,66517.0,66516.0,0.99253304]
[1722303888693,0.09228399,66517.0,66516.0,0.99253304]
[1722303888981,0.08228399,66517.0,66516.0,0.99253304]
[1722303889198,0.09428399,66517.0,66516.0,0.99253304]
[1722303889407,0.09228399,66517.0,66516.0,0.99253304]
[1722303889636,0.08228399,66517.0,66516.0,0.99253304]
[1722303889843,0.09228399,66517.0,66516.0,0.99253304]
[1722303890062,0.09228399,66517.0,66516.0,0.75199004]
[1722303890275,0.10228399,66517.0,66516.0,0.51144704]
[1722303890528,0.16248399,66517.0,66516.0,0.003]
[1722303890739,0.16248399,66517.0,66504.0,0.0623]
[1722303890740,0.03094715,66504.0,66503.0,0.0826]
[1722303890913,0.00894715,66501.0,66500.0,2.39605]
[1722303891089,0.02894715,66501.0,66500.0,2.39605]
[1722303891413,0.01894715,66501.0,66500.0,2.636651]
[1722303891552,0.02894715,66501.0,66500.0,2.78728404]
[1722303891811,0.01894715,66501.0,66500.0,2.78728404]
[1722303892007,0.00894715,66501.0,66500.0,2.88728404]
[1722303892315,0.07534716,66504.0,66501.0,0.240597]
[1722303892517,0.07534716,66504.0,66503.0,0.360885]
[1722303892755,0.02894715,66507.0,66506.0,0.360868]
[1722303892936,0.02894715,66507.0,66506.0,0.51150104]
[1722303893132,0.02894715,66507.0,66506.0,0.75208004]
[1722303893331,0.08141162,66507.0,66506.0,0.120289]
[1722303893535,0.02894715,66507.0,66506.0,0.120289]
[1722303893950,0.09141197,66507.0,66506.0,0.120289]
[1722303894150,0.03094715,66507.0,66506.0,0.120289]
[1722303894348,0.09341255,66507.0,66506.0,0.120289]
[1722303894548,0.10430881,66507.0,66506.0,0.120289]
[1722303894948,0.14189058,66507.0,66506.0,0.122289]
[1722303895128,0.13489058,66507.0,66506.0,0.361868]
[1722303895355,0.11130881,66507.0,66506.0,0.001]
[1722303895579,0.11830881,66507.0,66506.0,0.122289]
[1722303895991,0.05584341,66507.0,66506.0,0.122289]
[1722303896204,0.10741254,66507.0,66506.0,0.002]
[1722303896569,0.78190473,66507.0,66506.0,0.002]
[1722303896773,0.84237764,66507.0,66506.0,0.002]
[1722303896992,1.12110237,66507.0,66506.0,0.002]
[1722303897122,1.03646664,66507.0,66506.0,0.002]
[1722303897542,1.15675464,66507.0,66506.0,0.002]
[1722303898317,1.03646664,66507.0,66506.0,0.002]
[1722303898470,1.00932616,66507.0,66506.0,0.002]
[1722303898656,1.03291031,66507.0,66506.0,0.002]
[1722303898997,0.57611045,66507.0,66506.0,0.002]
[1722303899342,0.56911045,66507.0,66506.0,0.001]
[1722303899740,0.57611045,66507.0,66506.0,0.002]
[1722303899982,0.57611045,66507.0,66506.0,0.001]
[1722303900495,0.03094715,66501.0,66500.0,2.156361]
[1722303900792,0.26309153,66501.0,66500.0,2.396962]
[1722303901004,0.02957733,66501.0,66500.0,2.78819604]
[1722303901192,0.09204869,66501.0,66500.0,2.78819604]
[1722303901381,0.07141851,66501.0,66500.0,3.02879704]
[1722303901584,0.07141851,66501.0,66500.0,2.78819604]
[1722303901790,0.09141851,66501.0,66500.0,2.78819604]
[1722303902113,0.03094715,66501.0,66500.0,2.78819604]
[1722303902333,0.16169963,66501.0,66500.0,2.54759504]
[1722303902535,0.29429359,66501.0,66500.0,2.54759504]
[1722303902718,0.26023076,66501.0,66500.0,2.54759504]
[1722303902874,0.25823076,66501.0,66500.0,2.78819604]
[1722303903141,0.09205265,66501.0,66500.0,2.78819604]
[1722303903299,0.08205265,66501.0,66500.0,2.78819604]
[1722303903493,0.08141813,66501.0,66500.0,2.78819604]
[1722303903742,0.08141813,66501.0,66500.0,2.78919604]
[1722303903743,0.24823031,66501.0,66500.0,2.78919604]
[1722303903984,0.23759579,66501.0,66500.0,2.78919604]
[1722303904193,0.19575933,66501.0,66500.0,2.78919604]
[1722303904421,0.2582305,66501.0,66500.0,2.78819604]
[1722303905392,0.2602305,66501.0,66500.0,2.54759504]
[1722303905756,0.28381474,66501.0,66500.0,2.54759504]
[1722303906154,0.2502305,66501.0,66500.0,2.54759504]
[1722303906377,0.2602305,66501.0,66500.0,2.30699404]
[1722303906580,0.24959598,66501.0,66500.0,2.54759504]
[1722303906778,0.62432112,66501.0,66500.0,2.54759504]
[1722303906998,0.53492876,66501.0,66500.0,2.54759504]
[1722303907211,0.2502305,66501.0,66500.0,2.78819604]
[1722303907376,0.29293538,66501.0,66500.0,2.78819604]
[1722303907589,0.2495997,66501.0,66500.0,2.78819604]
[1722303907794,0.30493538,66501.0,66500.0,2.78819604]
[1722303908025,0.29293538,66501.0,66500.0,2.78819604]
[1722303908379,0.24823422,66501.0,66500.0,2.78819604]
[1722303908545,0.26523422,66501.0,66500.0,2.78819604]
[1722303908751,0.25323422,66501.0,66500.0,2.78819604]
[1722303908975,0.24123422,66501.0,66500.0,2.78819604]
[1722303909348,0.25123422,66501.0,66500.0,3.02879704]
[1722303909578,0.28481837,66501.0,66500.0,2.78819604]
[1722303909780,0.26481837,66501.0,66500.0,2.78819604]
[1722303909986,0.24123422,66501.0,66500.0,2.78819604]
[1722303910259,0.24923422,66501.0,66500.0,2.78819604]
[1722303910465,0.19875933,66501.0,66500.0,2.78819604]
[1722303910615,0.26023119,66501.0,66500.0,2.78819604]
[1722303911198,0.26023119,66501.0,66500.0,2.54759504]
[1722303911412,0.39348969,66501.0,66500.0,2.036062]
[1722303911642,0.69056514,66501.0,66500.0,2.156362]
[1722303911801,0.70154647,66501.0,66500.0,2.156362]
[1722303912007,0.60315381,66501.0,66500.0,2.156362]
[1722303912211,0.69217381,66501.0,66500.0,2.156362]
[1722303912427,0.70115514,66501.0,66500.0,2.156362]
[1722303912629,0.68915514,66501.0,66500.0,2.396963]
[1722303912861,0.25023119,66501.0,66500.0,2.396963]
[1722303913031,0.30494305,66501.0,66500.0,2.637564]
[1722303913395,0.23923119,66501.0,66500.0,2.637564]
[1722303913598,0.19775933,66501.0,66500.0,2.637564]
[1722303913799,0.25923197,66501.0,66500.0,2.637564]
[1722303914759,0.26023197,66501.0,66500.0,2.637564]
[1722303914965,0.26023197,66501.0,66500.0,2.78819704]
[1722303915110,0.24023197,66501.0,66500.0,2.78819704]
[1722303915515,0.2849421,66501.0,66500.0,2.78819704]
[1722303915916,0.3049421,66501.0,66500.0,2.78819704]
[1722303916488,0.24250937,66501.0,66500.0,2.78819704]
[1722303916886,0.24959625,66501.0,66500.0,2.78819704]
[1722303917090,0.25545761,66501.0,66500.0,2.78819704]
[1722303917393,0.29434486,66501.0,66500.0,2.78819704]
[1722303917593,0.30496287,66501.0,66500.0,2.78819704]
[1722303917820,0.25021426,66501.0,66500.0,3.02879804]
[1722303918034,0.25021426,66501.0,66500.0,3.10509804]
[1722303918417,0.23126711,66501.0,66500.0,3.10509804]
[1722303918830,0.25021426,66501.0,66500.0,3.16749804]
[1722303919068,0.25021379,66501.0,66500.0,3.16749804]
[1722303919207,0.24921379,66501.0,66500.0,3.16749804]
[1722303919419,0.25820304,66501.0,66500.0,3.16749804]
[1722303919623,0.21256207,66501.0,66500.0,3.16749804]
[1722303919938,0.29235149,66501.0,66500.0,3.16749804]
[1722303920321,0.29235149,66501.0,66500.0,3.16949804]
[1722303920595,0.29235149,66501.0,66500.0,3.10709804]
[1722303920871,0.41065258,66501.0,66500.0,3.10709804]
[1722303921074,0.42127059,66501.0,66500.0,3.10709804]
[1722303921712,0.42027059,66501.0,66500.0,3.10709804]
[1722303922177,0.40027059,66501.0,66500.0,3.10709804]
[1722303922528,0.41027059,66501.0,66500.0,3.10709804]
[1722303922709,0.40027059,66501.0,66500.0,3.10709804]
[1722303923053,0.24409315,66501.0,66500.0,3.10909804]
[1722303923270,0.39965241,66501.0,66500.0,3.10909804]
[1722303923560,0.40027042,66501.0,66500.0,3.10709804]
[1722303923790,0.39132327,66501.0,66500.0,3.10709804]
[1722303923973,0.42027042,66501.0,66500.0,3.10709804]
[1722303924349,0.29078657,66501.0,66500.0,3.03079804]
[1722303924550,0.29078673,66501.0,66500.0,3.03079804]
[1722303924808,0.28078671,66501.0,66500.0,3.03279804]
[1722303925018,0.48941708,66501.0,66500.0,2.55159604]
[1722303925225,0.48941708,66501.0,66500.0,2.54959604]
[1722303925226,0.44465068,66501.0,66500.0,2.54959604]
[1722303925384,0.64433609,66501.0,66500.0,2.159362]
[1722303925587,0.64433609,66501.0,66500.0,2.037062]
[1722303925588,1.75360235,66501.0,66500.0,2.037062]
[1722303925788,1.56887062,66501.0,66500.0,1.194862]
[1722303925997,1.86743102,66501.0,66500.0,1.194862]
[1722303926237,2.355082,66501.0,66500.0,1.194862]
[1722303926553,2.77318452,66501.0,66500.0,0.903941]
[1722303926668,2.77318452,66501.0,66494.0,0.001053]
[1722303926669,0.17925615,66495.0,66494.0,0.001053]
[1722303926869,2.46261219,66495.0,66494.0,0.001053]
[1722303927077,2.23787136,66495.0,66494.0,0.001053]
[1722303928174,2.22787136,66495.0,66494.0,0.001053]
[1722303928521,2.15312167,66495.0,66494.0,0.001053]
[1722303928928,1.70330863,66495.0,66494.0,0.001053]
[1722303929133,2.20761025,66495.0,66494.0,0.001053]
[1722303929364,2.25550469,66495.0,66494.0,0.001053]
[1722303929591,2.14879858,66495.0,66494.0,0.001053]
[1722303929788,0.89985495,66495.0,66494.0,0.001053]
[1722303929991,0.36626695,66495.0,66494.0,0.001053]
[1722303930214,0.39695538,66495.0,66494.0,0.001053]
[1722303930422,0.35226695,66495.0,66494.0,0.001053]
[1722303930613,0.27026695,66495.0,66494.0,0.001053]
[1722303930914,0.28426695,66495.0,66494.0,0.001053]
[1722303931143,0.47992311,66495.0,66494.0,0.001053]
[1722303931345,0.80257189,66495.0,66494.0,0.001053]
[1722303931824,1.96297408,66495.0,66494.0,0.002053]
[1722303932003,1.95822044,66495.0,66494.0,0.002053]
[1722303932203,1.99321582,66495.0,66494.0,0.002053]
[1722303932383,1.97921582,66495.0,66494.0,0.001053]
[1722303932732,1.96590027,66495.0,66494.0,0.001053]
[1722303932882,2.01130639,66495.0,66494.0,0.001053]
[1722303933068,2.23701696,66495.0,66494.0,0.001053]
[1722303933275,2.13930639,66495.0,66494.0,0.002053]
[1722303933585,2.12530639,66495.0,66494.0,0.002053]
[1722303933820,2.13930639,66495.0,66494.0,0.002053]
[1722303934179,2.37992539,66495.0,66494.0,0.002053]
[1722303935097,2.29928701,66495.0,66494.0,0.001053]
[1722303935518,2.29928701,66495.0,66489.0,0.05]
[1722303935519,1.14381315,66490.0,66489.0,0.05]
[1722303935750,1.14381315,66490.0,66463.0,0.009306]
[1722303935751,0.03094715,66464.0,66463.0,0.009306]
[1722303936414,0.10191091,66464.0,66463.0,0.009306]
[1722303937329,0.22227591,66464.0,66463.0,0.009306]
[1722303937532,0.46300691,66464.0,66463.0,0.009306]
[1722303937738,0.22227591,66464.0,66463.0,0.009306]
[1722303937979,0.46300691,66464.0,66463.0,0.009306]
[1722303938185,0.22227591,66464.0,66463.0,0.009306]
[1722303938388,0.22228904,66464.0,66463.0,0.009306]
[1722303938792,0.25588917,66464.0,66463.0,0.009306]
[1722303939327,0.22228904,66464.0,66463.0,0.009306]
[1722303939559,0.70375104,66464.0,66463.0,0.009306]
[1722303939780,0.73175104,66464.0,66463.0,0.009306]
[1722303939964,1.11950963,66464.0,66463.0,0.009306]
[1722303940296,1.16405701,66464.0,66463.0,0.009306]
[1722303940497,1.11950963,66464.0,66463.0,0.009306]
[1722303940921,1.10950963,66464.0,66463.0,0.009306]
[1722303941117,1.04299415,66464.0,66463.0,0.009306]
[1722303941350,1.11651435,66464.0,66463.0,0.009306]
[1722303941830,1.10551435,66464.0,66463.0,0.009306]
[1722303942003,0.73901973,66464.0,66463.0,0.009306]
[1722303942203,0.97975073,66464.0,66463.0,0.009306]
[1722303942802,0.97432894,66464.0,66463.0,0.009306]
[1722303943212,0.93480874,66464.0,66463.0,0.009306]
[1722303943420,1.14796617,66464.0,66463.0,0.009306]
[1722303943597,1.32955085,66464.0,66463.0,0.009306]
[1722303943797,1.57028185,66464.0,66463.0,0.009306]
[1722303944211,1.50773148,66464.0,66463.0,0.009306]
[1722303944415,1.58025723,66464.0,66463.0,0.009306]
[1722303944657,1.29506138,66464.0,66463.0,0.009306]
[1722303944872,1.52579238,66464.0,66463.0,0.009306]
[1722303945093,1.50579238,66464.0,66463.0,0.009306]
[1722303945314,1.52579238,66464.0,66463.0,0.009306]
[1722303945530,1.62319238,66464.0,66463.0,0.009306]
[1722303945743,1.62319238,66464.0,66453.0,0.009317]
[1722303945744,0.63286715,66454.0,66453.0,0.009317]
[1722303945970,1.28271277,66454.0,66453.0,0.009317]
[1722303946173,1.30640468,66454.0,66453.0,0.009317]
[1722303947055,1.29640468,66454.0,66453.0,0.009317]
[1722303947284,1.09040603,66454.0,66453.0,0.009317]
[1722303947434,1.01591997,66454.0,66453.0,0.009317]
[1722303947636,0.93563744,66454.0,66453.0,0.009317]
[1722303948076,0.94763744,66454.0,66453.0,0.009317]
[1722303948279,1.20790162,66454.0,66453.0,0.009317]
[1722303948441,1.43866962,66454.0,66453.0,0.009317]
[1722303948638,1.41320162,66454.0,66453.0,0.009317]
[1722303948861,1.42320162,66454.0,66453.0,0.009317]
[1722303949227,1.42720162,66454.0,66453.0,0.009317]
[1722303949450,1.68796962,66454.0,66453.0,0.009317]
[1722303949649,1.43720162,66454.0,66453.0,0.009317]
[1722303950069,1.42720162,66454.0,66453.0,0.009317]
[1722303950276,1.37467021,66454.0,66453.0,0.009317]
[1722303950490,1.36065167,66454.0,66453.0,0.009317]
[1722303950693,1.42318621,66454.0,66453.0,0.009317]
[1722303950942,1.4587919,66454.0,66453.0,0.009317]
[1722303951144,1.4707919,66454.0,66453.0,0.009317]
[1722303951370,1.43718621,66454.0,66453.0,0.009317]
[1722303951591,1.44718621,66454.0,66453.0,0.009317]
[1722303952131,1.45718621,66454.0,66453.0,0.009317]
[1722303952395,1.43718621,66454.0,66453.0,0.009317]
[1722303952627,1.71195421,66454.0,66453.0,0.009317]
[1722303952892,1.62181925,66454.0,66453.0,0.009317]
[1722303953074,1.87658725,66454.0,66453.0,0.009317]
[1722303953210,1.86658725,66454.0,66453.0,0.009317]
[1722303953421,1.87658725,66454.0,66453.0,0.009317]
[1722303953648,1.87658834,66454.0,66453.0,0.009317]
[1722303953883,2.10244646,66454.0,66453.0,0.009317]
[1722303954085,2.20244646,66454.0,66453.0,0.009317]
[1722303954533,2.22605388,66454.0,66453.0,0.009317]
[1722303954775,2.19805388,66454.0,66453.0,0.009317]
[1722303955003,2.03821374,66454.0,66453.0,0.009317]
[1722303955213,1.59414574,66454.0,66453.0,0.009317]
[1722303955446,1.59414574,66454.0,66433.0,0.009317]
[1722303955447,0.01,66430.0,66429.0,0.120429]
[1722303955660,0.03,66430.0,66429.0,0.75277804]
[1722303955862,0.0178636,66430.0,66429.0,0.75277804]
[1722303956081,0.01,66430.0,66429.0,1.01363604]
[1722303956272,0.02,66434.0,66433.0,0.60211]
[1722303956484,0.01,66438.0,66434.0,0.240838]
[1722303956715,0.032,66438.0,66437.0,0.361243]
[1722303957185,0.09453204,66438.0,66437.0,0.361243]
[1722303957400,0.09253204,66438.0,66437.0,0.361243]
[1722303957602,0.09453204,66438.0,66437.0,0.361243]
[1722303957808,0.09453204,66438.0,66437.0,0.120414]
[1722303957809,0.10253204,66438.0,66437.0,0.120414]
[1722303958012,0.03,66437.0,66436.0,0.361249]
[1722303958206,0.03,66437.0,66434.0,0.240838]
[1722303958207,0.03,66435.0,66434.0,0.36126]
[1722303958415,0.02,66435.0,66434.0,0.50276]
[1722303958588,0.09253204,66435.0,66434.0,0.50276]
[1722303958950,0.10813976,66435.0,66434.0,0.50276]
[1722303959174,0.10813976,66435.0,66434.0,0.0612]
[1722303959175,0.11813976,66435.0,66434.0,0.0612]
[1722303959395,0.032,66423.0,66422.0,0.1421]
[1722303959592,0.032,66423.0,66422.0,0.503426]
[1722303959593,0.10734716,66423.0,66422.0,0.503426]
[1722303959709,0.16789345,66423.0,66422.0,0.74431]
[1722303959970,0.10534716,66423.0,66422.0,0.804629]
[1722303960178,0.09534716,66423.0,66422.0,0.322861]
[1722303960377,0.10734716,66423.0,66422.0,0.563745]
[1722303960578,0.0015542,66429.0,66427.0,0.240865]
[1722303960579,0.03,66428.0,66427.0,0.240865]
[1722303960793,0.03,66428.0,66427.0,0.75279504]
[1722303961166,0.09254201,66428.0,66427.0,0.75279504]
[1722303961299,0.01,66428.0,66427.0,0.75279504]
[1722303961507,0.03,66428.0,66427.0,0.75279504]
[1722303961749,0.09253874,66428.0,66427.0,0.75279504]
[1722303961999,0.03,66428.0,66427.0,0.75279504]
[1722303962213,0.09253847,66428.0,66427.0,1.13436004]
[1722303962413,0.0015542,66441.0,66427.0,1.13436004]
[1722303962414,0.08534716,66437.0,66429.0,0.1407]
[1722303962562,0.08534716,66437.0,66423.0,0.1]
[1722303962563,0.07534716,66437.0,66436.0,0.742782]
[1722303962768,0.07534716,66437.0,66436.0,1.13424804]
[1722303962769,0.06253169,66437.0,66436.0,1.13424804]
[1722303962968,0.00138977,66441.0,66436.0,1.13424804]
[1722303962969,0.00138977,66441.0,66440.0,0.743545]
[1722303963167,0.01,66451.0,66440.0,0.743545]
[1722303963168,0.47444115,66451.0,66450.0,0.743455]
[1722303963368,1.7492,66453.0,66452.0,0.601937]
[1722303963369,0.02,66453.0,66452.0,0.601937]
[1722303963567,0.08251325,66453.0,66452.0,0.81417004]
[1722303963976,0.09251325,66453.0,66452.0,0.89407004]
[1722303964322,0.00786279,66453.0,66452.0,0.89407004]
[1722303964522,0.00786279,66453.0,66452.0,1.13484504]
[1722303964727,0.07037514,66453.0,66452.0,1.13484504]
[1722303964933,0.00786279,66453.0,66452.0,1.13484504]
[1722303965150,0.06251229,66453.0,66452.0,1.13484504]
[1722303965358,0.06251229,66464.0,66463.0,0.984072]
[1722303965532,0.02,66467.0,66463.0,0.984072]
[1722303965533,0.02,66467.0,66464.0,0.361096]
[1722303965683,0.13784676,66465.0,66464.0,0.75246004]
[1722303965884,0.13784676,66465.0,66464.0,1.29552204]
[1722303966150,1.2739,66471.0,66464.0,1.29552204]
[1722303966151,1.2739,66471.0,66470.0,0.601775]
[1722303966354,0.06249615,66471.0,66470.0,1.13461804]
[1722303966507,0.07534716,66472.0,66471.0,0.663365]
[1722303966708,0.07534716,66472.0,66471.0,1.05470404]
[1722303967084,0.07534716,66472.0,66471.0,1.13460404]
[1722303967572,1.34924716,66479.0,66478.0,0.842383]
[1722303967776,0.07534716,66479.0,66478.0,1.13451604]
[1722303968989,0.07534716,66479.0,66478.0,1.13551604]
[1722303969344,0.07534716,66479.0,66478.0,1.47619704]
[1722303969525,0.07534716,66479.0,66478.0,1.47519704]
[1722303969860,0.07534716,66479.0,66478.0,1.23451604]
[1722303970072,0.09893537,66479.0,66478.0,1.23451604]
[1722303970278,0.08534716,66479.0,66478.0,0.89383504]
[1722303970475,0.07534716,66479.0,66478.0,1.13451604]
[1722303970988,0.07534716,66479.0,66478.0,1.13851604]
[1722303971198,0.08534716,66479.0,66478.0,1.13851604]
[1722303971414,0.07534716,66479.0,66478.0,1.13451604]
[1722303972812,0.07634716,66479.0,66478.0,1.13551604]
[1722303973247,0.07634716,66479.0,66478.0,1.13451604]
[1722303973436,0.07634716,66479.0,66478.0,1.13551604]
[1722303973668,0.10093584,66479.0,66478.0,1.13551604]
[1722303973877,0.09993584,66479.0,66478.0,1.13451604]
[1722303974087,0.09993584,66479.0,66478.0,1.13551604]
[1722303974230,0.10093584,66479.0,66478.0,1.13551604]
[1722303974634,0.10093584,66479.0,66478.0,1.37619704]
[1722303974920,0.10093584,66479.0,66478.0,1.38119704]
[1722303974921,0.07834716,66479.0,66478.0,1.38119704]
[1722303975280,0.07634716,66479.0,66478.0,1.13951604]
[1722303975458,0.07634716,66479.0,66478.0,1.38019704]
[1722303975664,0.07734716,66479.0,66478.0,1.38119704]
[1722303976069,0.07634716,66479.0,66478.0,1.38019704]
[1722303976264,0.07734716,66479.0,66478.0,1.38119704]
[1722303976686,0.07634716,66479.0,66478.0,1.38019704]
[1722303976887,0.07634716,66479.0,66478.0,1.38119704]
[1722303977044,0.07734716,66479.0,66478.0,1.38119704]
[1722303977891,0.10093558,66479.0,66478.0,1.14051604]
[1722303978092,0.10093558,66479.0,66478.0,0.89983504]
[1722303978093,0.11093558,66479.0,66478.0,0.89983504]
[1722303978294,0.07734716,66479.0,66478.0,0.89983504]
[1722303978513,0.08734716,66479.0,66478.0,0.89983504]
[1722303978853,0.07734716,66479.0,66478.0,1.14051604]
[1722303979619,0.08734716,66479.0,66478.0,1.14051604]
[1722303980243,0.08734716,66479.0,66478.0,0.89983504]
[1722303980446,0.07734716,66479.0,66478.0,0.89983504]
[1722303980695,0.07734716,66479.0,66478.0,1.14051604]
[1722303981065,0.07634716,66479.0,66478.0,1.13551604]
[1722303981267,0.07734716,66479.0,66478.0,1.14051604]
[1722303981610,0.10093668,66479.0,66478.0,1.14051604]
[1722303981767,0.07634716,66479.0,66478.0,1.13551604]
[1722303982181,0.07734716,66479.0,66478.0,1.14051604]
[1722303982837,0.08934716,66479.0,66478.0,1.14051604]
[1722303982979,0.08734716,66479.0,66478.0,1.14051604]
[1722303983367,0.07734716,66479.0,66478.0,1.14051604]
[1722303983718,0.07634716,66479.0,66478.0,1.13951604]
[1722303984135,0.07634716,66479.0,66478.0,1.13551604]
[1722303984336,0.08634716,66479.0,66478.0,1.13551604]
[1722303984543,0.07734716,66479.0,66478.0,0.89983504]
[1722303984750,0.07734716,66479.0,66478.0,0.81993504]
[1722303984929,0.07634716,66479.0,66478.0,0.81493504]